bitfinex/quotes_BTCUSD_20241010
["timestamp","ask_amount","ask_price","bid_price","bid_amount"]
[1728532150187,0.61951487,60954.0,60953.0,0.20081911]
[1728532150800,0.73498531,60954.0,60953.0,0.03675911]
[1728532151007,0.89904331,60954.0,60953.0,0.03675911]
[1728532152034,0.80813314,60954.0,60953.0,0.03675911]
[1728532152258,0.74157273,60954.0,60953.0,0.013]
[1728532152778,0.74157273,60954.0,60951.0,0.001634]
[1728532152779,0.169063,60952.0,60951.0,0.001634]
[1728532152998,0.73077773,60952.0,60951.0,0.001634]
[1728532153490,0.75377773,60952.0,60951.0,0.001634]
[1728532154185,0.75382249,60952.0,60951.0,0.001634]
[1728532155099,0.75882249,60952.0,60951.0,0.002634]
[1728532155798,0.76582249,60952.0,60951.0,0.003634]
[1728532156027,0.91322855,60952.0,60951.0,0.003634]
[1728532156725,0.76582249,60952.0,60951.0,0.003634]
[1728532157407,0.91322473,60952.0,60951.0,0.003634]
[1728532157616,0.76582249,60952.0,60951.0,0.003634]
[1728532158314,0.91323326,60952.0,60951.0,0.003634]
[1728532158542,0.76582249,60952.0,60951.0,0.003634]
[1728532159473,0.9132407,60952.0,60951.0,0.003634]
[1728532159716,0.76582249,60952.0,60951.0,0.003634]
[1728532161351,0.71458155,60952.0,60951.0,0.003634]
[1728532161579,0.86199794,60952.0,60951.0,0.003634]
[1728532163232,0.86198556,60952.0,60951.0,0.003634]
[1728532168372,0.53320064,60952.0,60951.0,0.003634]
[1728532168622,0.86190283,60952.0,60951.0,0.003634]
[1728532169584,0.71453372,60952.0,60951.0,0.003634]
[1728532171237,0.69153372,60952.0,60951.0,0.003634]
[1728532171700,0.74270249,60952.0,60951.0,0.003634]
[1728532173083,0.57363949,60952.0,60951.0,0.003634]
[1728532173317,0.40530763,60952.0,60951.0,0.003634]
[1728532173551,0.40530763,60952.0,60951.0,0.1677]
[1728532173552,0.52808973,60952.0,60951.0,0.1677]
[1728532173776,0.45235736,60952.0,60951.0,0.1677]
[1728532174002,0.22194396,60952.0,60951.0,0.1677]
[1728532174226,0.06110632,60952.0,60951.0,0.1677]
[1728532174467,0.005,60952.0,60951.0,0.1667]
[1728532174693,0.05210641,60952.0,60951.0,0.1657]
[1728532175154,0.05710641,60952.0,60951.0,0.1657]
[1728532175349,0.003,60952.0,60951.0,0.1657]
[1728532175663,0.05710651,60952.0,60951.0,0.1657]
[1728532176366,0.008,60952.0,60951.0,0.1657]
[1728532176608,0.05710647,60952.0,60951.0,0.18928685]
[1728532176837,0.05410647,60952.0,60951.0,0.18928685]
[1728532177059,0.05610647,60952.0,60951.0,0.18928685]
[1728532178179,0.05610624,60952.0,60951.0,0.18928685]
[1728532179342,0.007,60952.0,60951.0,0.18928685]
[1728532179563,0.007,60952.0,60951.0,0.28338685]
[1728532180232,0.005,60952.0,60951.0,0.28338685]
[1728532180690,0.005,60952.0,60951.0,0.28438685]
[1728532181127,0.001636,60953.0,60951.0,0.28438685]
[1728532181128,0.001636,60953.0,60951.0,0.02522085]
[1728532181349,0.001636,60953.0,60952.0,0.164063]
[1728532182453,0.005636,60953.0,60952.0,0.164063]
[1728532182682,0.05474224,60953.0,60952.0,0.164063]
[1728532183462,0.05574224,60953.0,60952.0,0.164063]
[1728532185417,0.006636,60953.0,60952.0,0.164063]
[1728532187195,0.08029536,60953.0,60952.0,0.164063]
[1728532190564,0.08029536,60953.0,60951.0,0.35335185]
[1728532190565,0.54849355,60953.0,60951.0,0.18928485]
[1728532190793,0.80522055,60952.0,60951.0,0.001634]
[1728532191051,0.80522055,60952.0,60950.0,4.74580494]
[1728532191052,0.340166,60951.0,60950.0,4.74580494]
[1728532191281,0.68245795,60951.0,60950.0,4.74580494]
[1728532191750,0.81584741,60951.0,60950.0,4.74580494]
[1728532191966,0.82084741,60951.0,60950.0,4.74580494]
[1728532192415,0.82088103,60951.0,60950.0,4.74580494]
[1728532193089,0.82088103,60951.0,60950.0,4.74680494]
[1728532193314,0.71249157,60951.0,60950.0,4.74680494]
[1728532193547,0.79326909,60951.0,60950.0,4.74680494]
[1728532193772,0.68949157,60951.0,60950.0,4.74680494]
[1728532193998,0.68949157,60951.0,60950.0,4.74580494]
[1728532193999,0.81240135,60951.0,60950.0,4.74580494]
[1728532194680,0.81040135,60951.0,60950.0,4.74580494]
[1728532194951,0.81240135,60951.0,60950.0,4.74580494]
[1728532195403,0.81040135,60951.0,60950.0,4.74580494]
[1728532195631,0.81540135,60951.0,60950.0,4.74780494]
[1728532196078,0.64633535,60951.0,60950.0,4.74680494]
[1728532196547,0.55103535,60951.0,60950.0,4.91087294]
[1728532196775,0.35132557,60951.0,60950.0,4.91087294]
[1728532197465,0.35132557,60951.0,60950.0,4.91169094]
[1728532199868,0.16983764,60951.0,60950.0,4.91169094]
[1728532200098,0.26816429,60951.0,60950.0,4.91169094]
[1728532200339,0.44965074,60951.0,60950.0,4.91169094]
[1728532200544,0.44965074,60951.0,60950.0,4.74762294]
[1728532200981,0.35132409,60951.0,60950.0,4.74762294]
[1728532205432,0.16983764,60951.0,60950.0,4.74762294]
[1728532205683,0.35135348,60951.0,60950.0,4.74762294]
[1728532209401,0.35298948,60951.0,60950.0,4.74762294]
[1728532209855,0.35298948,60951.0,60950.0,4.91169094]
[1728532210379,0.35299648,60951.0,60950.0,4.91169094]
[1728532210628,0.45134538,60951.0,60950.0,4.91169094]
[1728532210873,0.35299648,60951.0,60950.0,4.91169094]
[1728532211112,0.19215884,60951.0,60950.0,4.91169094]
[1728532219519,0.13362374,60951.0,60950.0,4.91169094]
[1728532219741,0.19215884,60951.0,60950.0,4.91169094]
[1728532220606,0.010636,60951.0,60950.0,4.91169094]
[1728532220710,0.08442658,60951.0,60950.0,4.91169094]
[1728532220960,0.08042658,60951.0,60950.0,4.91169094]
[1728532221436,0.07642658,60951.0,60950.0,4.91069094]
[1728532221667,0.08042658,60951.0,60950.0,4.91069094]
[1728532228645,0.10503017,60951.0,60950.0,4.91069094]
[1728532229111,0.28662136,60951.0,60950.0,4.91069094]
[1728532229333,0.28661873,60951.0,60950.0,4.91069094]
[1728532229793,0.28662121,60951.0,60950.0,4.91069094]
[1728532230466,0.18823084,60951.0,60950.0,4.91069094]
[1728532237269,0.3112157,60951.0,60950.0,4.91069094]
[1728532242561,0.18823084,60951.0,60950.0,4.91069094]
[1728532244243,0.1883489,60951.0,60950.0,4.91069094]
[1728532249003,0.18836942,60951.0,60950.0,4.91069094]
[1728532258569,0.18844935,60951.0,60950.0,4.91069094]
[1728532261969,0.1884665,60951.0,60950.0,4.91069094]
[1728532271568,0.18852255,60951.0,60950.0,4.91069094]
[1728532272594,0.81949137,60951.0,60950.0,4.74662294]
[1728532272832,0.7434598,60951.0,60950.0,4.74662294]
[1728532273067,0.7664598,60951.0,60950.0,4.74662294]
[1728532273825,0.93270441,60951.0,60950.0,4.74662294]
[1728532274300,0.7664598,60951.0,60950.0,4.74662294]
[1728532274543,0.9326683,60951.0,60950.0,4.74662294]
[1728532274780,1.09347491,60951.0,60950.0,4.74662294]
[1728532275281,0.7664598,60951.0,60950.0,4.74662294]
[1728532276364,0.76633259,60951.0,60950.0,4.74662294]
[1728532279928,1.11967079,60951.0,60950.0,4.74662294]
[1728532280180,0.87133259,60951.0,60950.0,4.74662294]
[1728532280449,0.87333259,60951.0,60950.0,4.74662294]
[1728532280758,1.0341392,60951.0,60950.0,4.64662294]
[1728532280939,1.14342081,60951.0,60950.0,4.56332294]
[1728532281175,1.13942081,60951.0,60950.0,4.46332294]
[1728532281452,1.13942081,60951.0,60950.0,4.46432294]
[1728532281453,1.31440317,60951.0,60950.0,4.46432294]
[1728532281683,1.47823289,60951.0,60950.0,4.27022294]
[1728532281911,1.64421597,60951.0,60950.0,4.27022294]
[1728532282132,1.64421597,60951.0,60950.0,4.26922294]
[1728532282133,1.63521597,60951.0,60950.0,4.26922294]
[1728532282365,1.46923289,60951.0,60950.0,4.26922294]
[1728532282597,1.22892081,60951.0,60950.0,4.27022294]
[1728532282825,1.05602081,60951.0,60950.0,4.26922294]
[1728532283043,1.06502081,60951.0,60950.0,4.27022294]
[1728532283275,1.06002081,60951.0,60950.0,4.27022294]
[1728532283509,1.07102081,60951.0,60950.0,4.27122294]
[1728532284198,1.06002081,60951.0,60950.0,4.27022294]
[1728532284430,1.05302081,60951.0,60950.0,4.27022294]
[1728532284695,1.06202081,60951.0,60950.0,4.27122294]
[1728532284935,1.06202081,60951.0,60950.0,4.27022294]
[1728532284936,1.05302081,60951.0,60950.0,4.27022294]
[1728532285161,1.05302081,60951.0,60950.0,4.27122294]
[1728532285162,1.06202081,60951.0,60950.0,4.27122294]
[1728532285416,1.06161742,60951.0,60950.0,4.27122294]
[1728532285665,1.36176733,60951.0,60950.0,3.46815273]
[1728532285911,1.40596476,60951.0,60950.0,3.27073873]
[1728532286154,1.41866476,60951.0,60950.0,3.27073873]
[1728532286401,1.40866476,60951.0,60950.0,3.26973873]
[1728532286878,1.2982753,60951.0,60950.0,3.26973873]
[1728532287110,1.15491742,60951.0,60950.0,3.26973873]
[1728532287334,1.30305643,60951.0,60950.0,3.26973873]
[1728532287565,1.31205643,60951.0,60950.0,3.27073873]
[1728532287820,1.31205643,60951.0,60950.0,3.26973873]
[1728532288050,1.13015643,60951.0,60950.0,3.26973873]
[1728532288314,0.99201742,60951.0,60950.0,3.27073873]
[1728532288576,1.13011307,60951.0,60950.0,3.26973873]
[1728532288828,1.12911307,60951.0,60950.0,3.26973873]
[1728532289093,1.12011307,60951.0,60950.0,3.26873873]
[1728532289316,0.98301742,60951.0,60950.0,3.26973873]
[1728532289802,0.97301742,60951.0,60950.0,3.26873873]
[1728532290032,0.9313654,60951.0,60950.0,3.26973873]
[1728532290698,0.9403654,60951.0,60950.0,3.27073873]
[1728532294852,0.94019425,60951.0,60950.0,3.27073873]
[1728532295801,0.99119152,60951.0,60950.0,3.27073873]
[1728532295996,1.15645647,60951.0,60950.0,3.27073873]
[1728532296899,1.156379,60951.0,60950.0,3.27073873]
[1728532297392,0.99115105,60951.0,60950.0,3.27073873]
[1728532300305,0.88076159,60951.0,60950.0,3.27073873]
[1728532300533,0.99115105,60951.0,60950.0,3.27073873]
[1728532301678,0.97845105,60951.0,60950.0,3.27073873]
[1728532304513,0.97842307,60951.0,60950.0,3.27073873]
[1728532307968,0.97842307,60951.0,60950.0,3.27073873]
[1728532309177,0.97850003,60951.0,60950.0,3.27073873]
[1728532310361,0.97850003,60951.0,60950.0,3.18603563]
[1728532311566,0.86811057,60951.0,60950.0,3.18603563]
[1728532311783,0.97850003,60951.0,60950.0,3.18603563]
[1728532314103,0.97850003,60951.0,60950.0,3.07873094]
[1728532314333,0.97850003,60951.0,60950.0,2.93342654]
[1728532314557,0.97850003,60951.0,60950.0,2.90061254]
[1728532315204,0.97850003,60951.0,60950.0,2.76935654]
[1728532316582,1.12118445,60951.0,60950.0,2.76935654]
[1728532316864,0.97850003,60951.0,60950.0,2.76935654]
[1728532318213,1.15140003,60951.0,60950.0,2.76935654]
[1728532318450,1.15184429,60951.0,60950.0,2.76935654]
[1728532321201,1.3175232,60951.0,60950.0,2.76935654]
[1728532321429,1.40554012,60951.0,60950.0,2.76935654]
[1728532321659,1.15184429,60951.0,60950.0,2.76935654]
[1728532321899,1.15199316,60951.0,60950.0,2.76935654]
[1728532322125,1.31780654,60951.0,60950.0,2.76935654]
[1728532322585,0.96180135,60951.0,60950.0,2.76935654]
[1728532322815,0.96180135,60951.0,60950.0,2.94655654]
[1728532322816,0.68289709,60951.0,60950.0,2.94655654]
[1728532323786,0.67489709,60951.0,60950.0,2.94555654]
[1728532324246,0.70589709,60951.0,60950.0,2.94655654]
[1728532324523,0.8437037,60951.0,60950.0,2.94655654]
[1728532324766,0.8337037,60951.0,60950.0,2.94555654]
[1728532324999,0.58289709,60951.0,60950.0,2.94655654]
[1728532325247,0.57389709,60951.0,60950.0,2.94555654]
[1728532325471,0.58189709,60951.0,60950.0,2.94655654]
[1728532325709,0.57389709,60951.0,60950.0,2.94555654]
[1728532325940,0.59689709,60951.0,60950.0,2.94555654]
[1728532326169,0.7647037,60951.0,60950.0,2.94655654]
[1728532326407,0.7547037,60951.0,60950.0,2.94455654]
[1728532326631,0.7707037,60951.0,60950.0,2.94655654]
[1728532327090,0.7477037,60951.0,60950.0,2.94455654]
[1728532327562,0.7567037,60951.0,60950.0,2.94555654]
[1728532328468,0.7647037,60951.0,60950.0,2.94655654]
[1728532332688,0.87509316,60951.0,60950.0,2.94655654]
[1728532338207,0.87709316,60951.0,60950.0,2.94655654]
[1728532339185,0.87509316,60951.0,60950.0,2.94655654]
[1728532342845,0.7647037,60951.0,60950.0,2.94655654]
[1728532344221,0.60389709,60951.0,60950.0,2.94655654]
[1728532344415,0.7697609,60951.0,60950.0,2.94655654]
[1728532353388,0.59889709,60951.0,60950.0,2.94655654]
[1728532353631,0.60389709,60951.0,60950.0,2.94655654]
[1728532355027,0.60392131,60951.0,60950.0,2.94655654]
[1728532355935,0.76472792,60951.0,60950.0,2.94655654]
[1728532357090,0.76475352,60951.0,60950.0,2.94655654]
[1728532358503,0.75975352,60951.0,60950.0,2.94655654]
[1728532358730,0.76475352,60951.0,60950.0,2.94655654]
[1728532359191,0.75975352,60951.0,60950.0,2.94655654]
[1728532359417,0.92561409,60951.0,60950.0,2.94655654]
[1728532359881,0.92571235,60951.0,60950.0,2.94655654]
[1728532360786,0.76490574,60951.0,60950.0,2.94655654]
[1728532361482,0.59899824,60951.0,60950.0,2.94655654]
[1728532361709,0.76495932,60951.0,60950.0,2.94655654]
[1728532362440,0.76499717,60951.0,60950.0,2.94655654]
[1728532362690,0.59899824,60951.0,60950.0,2.94655654]
[1728532363137,0.7087795,60951.0,60950.0,2.94655654]
[1728532364768,0.70894491,60951.0,60950.0,2.94655654]
[1728532368031,0.59916365,60951.0,60950.0,2.94655654]
[1728532369465,0.59908404,60951.0,60950.0,2.94655654]
[1728532372489,0.57608404,60951.0,60950.0,2.94655654]
[1728532372712,0.74227987,60951.0,60950.0,2.94655654]
[1728532372968,0.74226974,60951.0,60950.0,2.94655654]
[1728532373475,0.57608404,60951.0,60950.0,2.94655654]
[1728532374210,0.57607584,60951.0,60950.0,2.94655654]
[1728532374921,0.74225287,60951.0,60950.0,2.94655654]
[1728532375415,0.57607584,60951.0,60950.0,2.94655654]
[1728532377469,0.74224761,60951.0,60950.0,2.94655654]
[1728532377909,0.57607584,60951.0,60950.0,2.94655654]
[1728532378193,0.74224761,60951.0,60950.0,2.94655654]
[1728532378432,0.57607584,60951.0,60950.0,2.94655654]
[1728532381083,0.41200984,60951.0,60950.0,2.94655654]
[1728532381303,0.57607584,60951.0,60950.0,2.94655654]
[1728532381966,0.56707584,60951.0,60950.0,2.94555654]
[1728532382191,0.55907584,60951.0,60950.0,2.94455654]
[1728532382651,0.72524098,60951.0,60950.0,2.94455654]
[1728532383378,0.73324098,60951.0,60950.0,2.94555654]
[1728532383599,0.74224098,60951.0,60950.0,2.94655654]
[1728532383821,0.57607584,60951.0,60950.0,2.94655654]
[1728532389966,0.75988245,60951.0,60950.0,2.94655654]
[1728532390204,0.59907584,60951.0,60950.0,2.86505654]
[1728532392054,0.59913822,60951.0,60950.0,2.86505654]
[1728532392508,0.59913822,60951.0,60950.0,3.057146]
[1728532392778,0.57613822,60951.0,60950.0,3.057146]
[1728532393017,0.74236604,60951.0,60950.0,2.94675654]
[1728532396799,0.74234095,60951.0,60950.0,2.94675654]
[1728532401215,0.5761195,60951.0,60950.0,2.94675654]
[1728532401643,0.74234095,60951.0,60950.0,2.94675654]
[1728532405739,0.5761195,60951.0,60950.0,2.94675654]
[1728532406466,0.57611809,60951.0,60950.0,2.94675654]
[1728532406940,0.59911809,60951.0,60950.0,2.94675654]
[1728532409896,0.74101781,60951.0,60950.0,2.94675654]
[1728532410129,0.74101781,60951.0,60950.0,2.76935654]
[1728532411097,0.59911809,60951.0,60950.0,2.76935654]
[1728532411330,0.60411809,60951.0,60950.0,2.76935654]
[1728532411784,0.85245629,60951.0,60950.0,2.76935654]
[1728532412013,0.60411809,60951.0,60950.0,2.76935654]
[1728532412529,0.85864272,60951.0,60950.0,2.76935654]
[1728532413006,1.01944933,60951.0,60950.0,2.76935654]
[1728532413249,1.11944933,60951.0,60950.0,2.76935654]
[1728532415401,0.8649247,60951.0,60950.0,2.76935654]
[1728532419376,1.1132629,60951.0,60950.0,2.76935654]
[1728532419639,1.36385374,60951.0,60950.0,2.76935654]
[1728532420323,1.12144933,60951.0,60950.0,2.76935654]
[1728532421247,0.8649247,60951.0,60950.0,2.76935654]
[1728532423206,0.97531416,60951.0,60950.0,2.76935654]
[1728532424658,0.8649247,60951.0,60950.0,2.76935654]
[1728532430311,0.86468558,60951.0,60950.0,2.76935654]
[1728532434134,0.70387897,60951.0,60950.0,2.86295654]
[1728532435111,0.52231479,60951.0,60950.0,2.86295654]
[1728532435353,0.70387969,60951.0,60950.0,2.86295654]
[1728532439269,0.70387557,60951.0,60950.0,2.86295654]
[1728532450322,0.7039836,60951.0,60950.0,2.86295654]
[1728532450769,0.76857524,60951.0,60950.0,2.86295654]
[1728532453680,0.76864367,60951.0,60950.0,2.86295654]
[1728532453931,0.41731479,60951.0,60950.0,2.93875654]
[1728532455174,0.59905093,60951.0,60950.0,2.93875654]
[1728532459068,0.5990198,60951.0,60950.0,2.93875654]
[1728532460224,0.76511423,60951.0,60950.0,2.93875654]
[1728532463619,0.76499534,60951.0,60950.0,2.93875654]
[1728532464317,0.59893896,60951.0,60950.0,2.93875654]
[1728532467807,0.76499534,60951.0,60950.0,2.93875654]
[1728532468264,0.76498709,60951.0,60950.0,2.93875654]
[1728532473166,0.41731479,60951.0,60950.0,2.93875654]
[1728532473405,0.76507278,60951.0,60950.0,2.93875654]
[1728532475290,0.59897941,60951.0,60950.0,2.93875654]
[1728532477403,0.59899996,60951.0,60950.0,2.93875654]
[1728532484707,0.76525119,60951.0,60950.0,2.93875654]
[1728532486925,0.59899996,60951.0,60950.0,2.93875654]
[1728532492362,0.7652415,60951.0,60950.0,2.93875654]
[1728532492582,0.76538651,60951.0,60950.0,2.93875654]
[1728532492819,0.7653857,60951.0,60950.0,2.93875654]
[1728532493266,0.5991433,60951.0,60950.0,2.93875654]
[1728532501171,0.59921174,60951.0,60950.0,2.93875654]
[1728532503285,0.85386747,60951.0,60950.0,2.86295654]
[1728532503531,0.59921174,60951.0,60950.0,2.76935654]
[1728532503741,0.85386747,60951.0,60950.0,2.76935654]
[1728532503971,0.59921174,60951.0,60950.0,2.76935654]
[1728532504196,0.85386747,60951.0,60950.0,2.76935654]
[1728532504425,0.59921174,60951.0,60950.0,2.76935654]
[1728532505376,0.85386747,60951.0,60950.0,2.76935654]
[1728532505598,0.59921174,60951.0,60950.0,2.76935654]
[1728532505825,0.85386747,60951.0,60950.0,2.76935654]
[1728532506077,0.59921174,60951.0,60950.0,2.76935654]
[1728532508743,0.76001835,60951.0,60950.0,2.76935654]
[1728532509224,1.01467408,60951.0,60950.0,2.76935654]
[1728532509452,0.76001835,60951.0,60950.0,2.76935654]
[1728532510338,0.5781214,60951.0,60950.0,2.76935654]
[1728532510556,0.75994154,60951.0,60950.0,2.76935654]
[1728532511478,1.00827974,60951.0,60950.0,2.76935654]
[1728532511670,1.12148973,60951.0,60950.0,2.76935654]
[1728532511892,1.36391658,60951.0,60950.0,2.76935654]
[1728532512128,1.12148973,60951.0,60950.0,2.76935654]
[1728532512349,1.36386115,60951.0,60950.0,2.76935654]
[1728532512571,1.35486115,60951.0,60950.0,2.76835654]
[1728532512852,1.34686115,60951.0,60950.0,2.76735654]
[1728532513076,1.12948973,60951.0,60950.0,2.76935654]
[1728532513319,1.10448973,60951.0,60950.0,2.76735654]
[1728532513787,1.10448973,60951.0,60950.0,2.76835654]
[1728532514013,1.11548973,60951.0,60950.0,2.76835654]
[1728532514709,1.12948973,60951.0,60950.0,2.76935654]
[1728532514945,1.14120089,60951.0,60950.0,2.76835654]
[1728532515185,1.38348408,60951.0,60950.0,2.76835654]
[1728532515461,1.39748408,60951.0,60950.0,2.76935654]
[1728532515693,1.38648408,60951.0,60950.0,2.76735654]
[1728532515929,1.41448408,60951.0,60950.0,2.76835654]
[1728532516153,1.40048408,60951.0,60950.0,2.76735654]
[1728532516399,1.13193589,60951.0,60950.0,2.76735654]
[1728532516593,1.40048408,60951.0,60950.0,2.76835654]
[1728532516868,1.15993589,60951.0,60950.0,2.76835654]
[1728532517107,1.41448408,60951.0,60950.0,2.76835654]
[1728532517334,1.15993589,60951.0,60950.0,2.76835654]
[1728532517572,0.9176527,60951.0,60950.0,2.76835654]
[1728532518056,0.9156527,60951.0,60950.0,2.76835654]
[1728532518759,0.9156527,60951.0,60950.0,2.86585654]
[1728532518995,0.9176527,60951.0,60950.0,2.86585654]
[1728532519696,0.9156527,60951.0,60950.0,2.86585654]
[1728532520423,0.9176527,60951.0,60950.0,2.86585654]
[1728532521509,1.02604216,60951.0,60950.0,2.86585654]
[1728532524597,0.84422202,60951.0,60950.0,2.86585654]
[1728532524819,1.02577574,60951.0,60950.0,2.86585654]
[1728532525052,0.86696913,60951.0,60950.0,2.86585654]
[1728532526707,0.86496913,60951.0,60950.0,2.86585654]
[1728532530266,0.86696913,60951.0,60950.0,2.86585654]
[1728532531184,0.86496913,60951.0,60950.0,2.86585654]
[1728532531868,0.86696913,60951.0,60950.0,2.86585654]
[1728532532106,0.9996473,60951.0,60950.0,2.86585654]
[1728532532584,0.9976473,60951.0,60950.0,2.86585654]
[1728532533314,0.9996473,60951.0,60950.0,2.86585654]
[1728532534457,0.99964804,60951.0,60950.0,2.86585654]
[1728532537422,0.81809358,60951.0,60950.0,2.86585654]
[1728532537642,0.99966869,60951.0,60950.0,2.86585654]
[1728532538010,0.86699052,60951.0,60950.0,2.86585654]
[1728532538423,0.86499052,60951.0,60950.0,2.86585654]
[1728532539159,0.86500316,60951.0,60950.0,2.86585654]
[1728532540560,0.86700316,60951.0,60950.0,2.86585654]
[1728532542321,1.12122601,60951.0,60950.0,2.86585654]
[1728532542644,1.00883655,60951.0,60950.0,2.86585654]
[1728532542918,1.00883655,60951.0,60950.0,2.94685654]
[1728532542919,0.72890254,60951.0,60950.0,2.94685654]
[1728532544103,0.72899785,60951.0,60950.0,2.94685654]
[1728532548800,0.72907655,60951.0,60950.0,2.94685654]
[1728532549042,0.98354301,60951.0,60950.0,2.94685654]
[1728532549260,1.22589202,60951.0,60950.0,2.94685654]
[1728532551567,1.38669863,60951.0,60950.0,2.94685654]
[1728532552483,1.14434962,60951.0,60950.0,2.94685654]
[1728532553157,1.38677829,60951.0,60950.0,2.94685654]
[1728532553374,1.14434962,60951.0,60950.0,2.94685654]
[1728532553591,1.38696888,60951.0,60950.0,2.94685654]
[1728532553843,1.14452609,60951.0,60950.0,2.94685654]
[1728532555908,0.98371948,60951.0,60950.0,2.94685654]
[1728532558377,0.98385261,60951.0,60950.0,2.94685654]
[1728532560240,0.98585261,60951.0,60950.0,2.94685654]
[1728532560461,0.98385261,60951.0,60950.0,2.94685654]
[1728532561770,0.98386181,60951.0,60950.0,2.94685654]
[1728532562228,1.14466842,60951.0,60950.0,2.94685654]
[1728532562669,0.98386181,60951.0,60950.0,2.94685654]
[1728532565587,0.98386181,60951.0,60950.0,2.94685654]
[1728532571860,1.22639726,60951.0,60950.0,2.94685654]
[1728532572509,0.98386181,60951.0,60950.0,2.94685654]
[1728532576460,0.98383805,60951.0,60950.0,2.94685654]
[1728532579368,0.98583805,60951.0,60950.0,2.94685654]
[1728532579631,0.98583805,60951.0,60950.0,2.76835654]
[1728532579632,1.14664466,60951.0,60950.0,2.76835654]
[1728532579872,1.15934466,60951.0,60950.0,2.5778642]
[1728532580130,1.40191564,60951.0,60950.0,2.5778642]
[1728532580374,1.15934466,60951.0,60950.0,2.5778642]
[1728532580599,0.90470609,60951.0,60950.0,2.4137942]
[1728532580834,1.15934466,60951.0,60950.0,2.4137942]
[1728532581056,0.90470609,60951.0,60950.0,2.4137942]
[1728532581279,1.15934466,60951.0,60950.0,2.4137942]
[1728532581543,0.90470609,60951.0,60950.0,2.4137942]
[1728532581779,0.89070609,60951.0,60950.0,2.2497242]
[1728532582015,0.87670609,60951.0,60950.0,2.2497242]
[1728532582472,0.86270609,60951.0,60950.0,2.2487242]
[1728532582715,0.87670609,60951.0,60950.0,2.2497242]
[1728532583162,0.87670609,60951.0,60950.0,2.2487242]
[1728532583163,0.86270609,60951.0,60950.0,2.2487242]
[1728532583407,0.87670609,60951.0,60950.0,2.2487242]
[1728532583635,0.87670609,60951.0,60950.0,2.2497242]
[1728532584062,0.89070609,60951.0,60950.0,2.2497242]
[1728532584517,0.87670609,60951.0,60950.0,2.2497242]
[1728532584736,0.87670609,60951.0,60950.0,2.2487242]
[1728532585467,0.89070609,60951.0,60950.0,2.2497242]
[1728532585675,0.89070609,60951.0,60950.0,2.2169102]
[1728532585676,1.14470648,60951.0,60950.0,2.2169102]
[1728532585925,0.89044018,60951.0,60950.0,2.0856542]
[1728532586122,0.87644018,60951.0,60950.0,2.0846542]
[1728532586333,0.89044018,60951.0,60950.0,2.0856542]
[1728532586542,0.87644018,60951.0,60950.0,2.0200262]
[1728532586759,0.87644018,60951.0,60950.0,1.16462044]
[1728532586973,0.89044018,60951.0,60950.0,1.14409566]
[1728532587227,0.87644018,60951.0,60950.0,1.09270073]
[1728532587438,0.89044018,60951.0,60950.0,1.05988673]
[1728532587656,0.87644018,60951.0,60950.0,0.96144473]
[1728532587878,0.87644018,60951.0,60950.0,0.90333273]
[1728532587879,0.86244018,60951.0,60950.0,0.90333273]
[1728532588125,0.89544018,60951.0,60950.0,0.74756793]
[1728532588328,1.13570648,60951.0,60950.0,0.74756793]
[1728532588539,1.13570648,60951.0,60950.0,0.58249793]
[1728532588540,0.86744018,60951.0,60950.0,0.58249793]
[1728532589201,1.13570648,60951.0,60950.0,0.53774141]
[1728532589466,1.13570648,60951.0,60950.0,0.37385222]
[1728532589467,1.05444018,60951.0,60950.0,0.37385222]
[1728532589696,0.271106,60936.0,60935.0,0.0956]
[1728532589929,0.169117,60932.0,60896.0,0.03265673]
[1728532590151,0.77296015,60932.0,60896.0,0.03265673]
[1728532590373,0.92245279,60932.0,60896.0,0.03265673]
[1728532590825,0.92045279,60932.0,60911.0,0.11202346]
[1728532591048,0.92045279,60932.0,60912.0,0.16417]
[1728532591286,0.93445279,60932.0,60911.0,0.11202346]
[1728532591502,0.97076676,60932.0,60912.0,0.16417]
[1728532591727,1.1182594,60932.0,60912.0,0.16417]
[1728532591989,1.37223268,60932.0,60912.0,0.16417]
[1728532592207,1.37223282,60932.0,60912.0,0.16417]
[1728532592428,1.1322594,60932.0,60931.0,0.001818]
[1728532592862,1.1042594,60932.0,60931.0,0.000818]
[1728532593103,0.97293189,60932.0,60931.0,0.000818]
[1728532593337,1.21283624,60932.0,60931.0,0.000818]
[1728532593552,1.21283624,60932.0,60931.0,0.001818]
[1728532593553,1.22683624,60932.0,60931.0,0.001818]
[1728532593783,1.24083624,60932.0,60931.0,0.001818]
[1728532593983,1.22683624,60932.0,60931.0,0.001818]
[1728532594410,1.13427823,60932.0,60931.0,0.001818]
[1728532594629,1.3821138,60932.0,60931.0,0.001818]
[1728532594832,1.23476746,60932.0,60931.0,0.001818]
[1728532595709,1.22076746,60932.0,60931.0,0.000818]
[1728532595959,1.23476746,60932.0,60931.0,0.000818]
[1728532596197,1.24876746,60932.0,60931.0,0.001818]
[1728532596443,1.23476746,60932.0,60931.0,0.001818]
[1728532596690,1.23476746,60932.0,60931.0,0.000818]
[1728532596925,1.23476746,60932.0,60931.0,0.001818]
[1728532597408,1.23476746,60932.0,60931.0,0.000818]
[1728532598438,0.98098778,60932.0,60931.0,0.000818]
[1728532598586,0.813369,60932.0,60931.0,0.001818]
[1728532599457,0.70297954,60932.0,60931.0,0.001818]
[1728532599691,0.813369,60932.0,60931.0,0.001818]
[1728532600196,1.24793208,60932.0,60931.0,0.001818]
[1728532600652,0.813369,60932.0,60931.0,0.001818]
[1728532608814,0.292157,60917.0,60916.0,0.0762]
[1728532609065,0.6145465,60917.0,60916.0,0.0762]
[1728532609301,0.50415704,60917.0,60916.0,0.0762]
[1728532610017,0.005,60916.0,60901.0,0.35872766]
[1728532610236,0.16083764,60902.0,60901.0,0.35872766]
[1728532610501,0.16083764,60902.0,60901.0,0.27458946]
[1728532610724,0.16083764,60902.0,60901.0,0.11038946]
[1728532612846,0.18683764,60902.0,60901.0,0.11038946]
[1728532613067,0.18683764,60902.0,60901.0,0.45288946]
[1728532614159,0.18683764,60902.0,60901.0,0.44683946]
[1728532617101,0.18683764,60902.0,60901.0,0.45283946]
[1728532619042,0.18683764,60902.0,60901.0,0.28945746]
[1728532619266,0.18683764,60902.0,60901.0,0.185118]
[1728532622406,0.23582622,60902.0,60901.0,0.185118]
[1728532622635,0.18683764,60902.0,60901.0,0.185118]
[1728532622854,0.23585308,60902.0,60901.0,0.185118]
[1728532623541,0.18683764,60902.0,60901.0,0.185118]
[1728532624278,0.26038534,60902.0,60901.0,0.185118]
[1728532624513,0.46597238,60902.0,60901.0,0.185118]
[1728532624694,0.51716636,60902.0,60901.0,0.185118]
[1728532625613,0.54168226,60902.0,60901.0,0.185118]
[1728532626484,0.41910276,60902.0,60901.0,0.185118]
[1728532627651,0.54168226,60902.0,60901.0,0.185118]
[1728532628541,0.41910276,60902.0,60901.0,0.185118]
[1728532631000,0.57990937,60902.0,60901.0,0.185118]
[1728532631282,0.58154537,60902.0,60901.0,0.185118]